fUSD/lending_fUSD_20260607
["ID","MTS","AMOUNT","RATE_DAILY","PERIOD"]
[424351439,1780781441000,-166.66,0.00014384,2]
[424351434,1780781441000,-150.0,0.00014362,2]
[424351440,1780781441000,-150.0,0.00014387,2]
[424351442,1780781441000,-337.3653641,0.00014396,2]
[424351444,1780781441000,-150.0,0.000144,2]
[424351446,1780781441000,-337.3653641,0.00014411,2]
[424351448,1780781441000,-150.0,0.00014424,2]
[424351443,1780781441000,-150.0,0.00014397,2]
[424351445,1780781441000,-300.0,0.000144,5]
[424351447,1780781441000,-150.0,0.00014421,2]
[424351450,1780781441000,-150.0,0.00014432,2]
[424351449,1780781441000,-337.3653641,0.00014426,2]
[424351388,1780781441000,-337.3653641,0.00014245,2]
[424351425,1780781441000,-337.3653641,0.0001432,2]
[424351429,1780781441000,-150.0,0.00014335,2]
[424351438,1780781441000,-337.3653641,0.00014381,2]
[424351418,1780781441000,-600.14,0.00014315,2]
[424351416,1780781441000,-500.0,0.00014315,2]
[424351393,1780781441000,-326.87206672,0.0001425,2]
[424351395,1780781441000,-150.0,0.0001427,2]
[424351403,1780781441000,-150.0,0.00014298,2]
[424351400,1780781441000,-150.0,0.00014287,2]
[424351401,1780781441000,-337.3653641,0.0001429,2]
[424351394,1780781441000,-337.3653641,0.0001426,2]
[424351397,1780781441000,-150.0,0.00014274,2]
[424351396,1780781441000,-2000.0,0.00014273,2]
[424351399,1780781441000,-350.0,0.00014281,2]
[424351402,1780781441000,-166.66,0.00014297,2]
[424351398,1780781441000,-337.3653641,0.00014275,2]
[424351405,1780781441000,-500.0,0.00014301,2]
[424351415,1780781441000,-500.0,0.00014315,2]
[424351390,1780781441000,-166.66,0.00014247,2]
[424351406,1780781441000,-150.0,0.00014302,2]
[424351404,1780781441000,-1900.0,0.000143,5]
[424351428,1780781441000,-889.93805498,0.00014332,2]
[424351417,1780781441000,-514.78,0.00014315,2]
[424351427,1780781441000,-150.0,0.00014331,2]
[424351410,1780781441000,-662.8,0.00014315,2]
[424351414,1780781441000,-500.0,0.00014315,2]
[424351419,1780781441000,-154900.5945035,0.00014316,2]
[424351412,1780781441000,-500.0,0.00014315,2]
[424351411,1780781441000,-605.94,0.00014315,2]
[424351409,1780781441000,-500.0,0.00014315,2]
[424351407,1780781441000,-337.3653641,0.00014305,2]
[424351408,1780781441000,-500.0,0.00014315,2]
[424351413,1780781441000,-500.0,0.00014315,2]
[424351487,1780781442000,-337.3653641,0.00014608,2]
[424351490,1780781442000,-889.93805498,0.00014616,2]
[424351489,1780781442000,-150.0,0.00014612,2]
[424351491,1780781442000,-150.0,0.00014618,2]
[424351486,1780781442000,-300.0,0.000146,5]
[424351484,1780781442000,-150.0,0.00014593,2]
[424351494,1780781442000,-150.0,0.00014637,2]
[424351485,1780781442000,-150.0,0.00014595,2]
[424351492,1780781442000,-337.3653641,0.00014623,2]
[424351493,1780781442000,-150.0,0.00014628,2]
[424351495,1780781442000,-337.3653641,0.00014638,2]
[424351488,1780781442000,-150.0,0.00014612,2]
[424351498,1780781442000,-150.0,0.00014661,2]
[424351507,1780781442000,-337.3653641,0.00014699,2]
[424351506,1780781442000,-150.0,0.00014693,2]
[424351504,1780781442000,-600.14,0.00014691,2]
[424351503,1780781442000,-150.0,0.00014687,2]
[424351502,1780781442000,-150.0,0.00014687,2]
[424351496,1780781442000,-150.0,0.00014642,2]
[424351500,1780781442000,-337.3653641,0.00014668,2]
[424351499,1780781442000,-150.0,0.00014667,2]
[424351501,1780781442000,-337.3653641,0.00014684,2]
[424351505,1780781442000,-150.0,0.00014691,2]
[424351509,1780781442000,-150.0,0.00014705,2]
[424351519,1780781442000,-337.3653641,0.00014729,2]
[424351510,1780781442000,-337.3653641,0.00014714,2]
[424351482,1780781442000,-150.0,0.00014587,2]
[424351497,1780781442000,-337.3653641,0.00014653,2]
[424351483,1780781442000,-337.3653641,0.00014593,2]
[424351516,1780781442000,-500.0,0.00014726,2]
[424351474,1780781442000,-150.0,0.00014544,2]
[424351454,1780781442000,-15000.38414706,0.00014443,2]
[424351453,1780781442000,-311.00234302,0.00014443,2]
[424351452,1780781442000,-337.3653641,0.00014441,2]
[424351456,1780781442000,-337.3653641,0.00014456,2]
[424351466,1780781442000,-337.3653641,0.00014502,2]
[424351457,1780781442000,-150.0,0.00014465,2]
[424351467,1780781442000,-337.3653641,0.00014517,2]
[424351458,1780781442000,-150.0,0.0001447,2]
[424351455,1780781442000,-150.0,0.00014446,2]
[424351463,1780781442000,-150.0,0.00014495,2]
[424351459,1780781442000,-337.3653641,0.00014472,2]
[424351462,1780781442000,-337.3653641,0.00014487,2]
[424351461,1780781442000,-150.0,0.00014487,2]
[424351478,1780781442000,-150.0,0.00014563,2]
[424351460,1780781442000,-150.0,0.00014487,2]
[424351464,1780781442000,-150.0,0.00014498,2]
[424351468,1780781442000,-150.0,0.00014518,2]
[424351469,1780781442000,-150.0,0.0001452,2]
[424351471,1780781442000,-337.3653641,0.00014532,2]
[424351470,1780781442000,-150.0,0.0001453,2]
[424351475,1780781442000,-337.3653641,0.00014547,2]
[424351476,1780781442000,-1537.03591727,0.00014551,2]
[424351480,1780781442000,-150.0,0.00014569,2]
[424351479,1780781442000,-1500.0,0.00014568,2]
[424351473,1780781442000,-150.0,0.00014537,2]
[424351477,1780781442000,-337.3653641,0.00014562,2]
[424351481,1780781442000,-337.3653641,0.00014578,2]
[424351472,1780781442000,-155.09,0.00014532,2]
[424351465,1780781442000,-300.0,0.000145,5]
[424351511,1780781442000,-150.0,0.00014716,2]
[424351508,1780781442000,-300.0,0.000147,5]
[424351518,1780781442000,-500.0,0.00014726,2]
[424351547,1780781442000,-150.0,0.00014839,2]
[424351549,1780781442000,-2000.0,0.0001485,2]
[424351555,1780781442000,-150.0,0.00014863,2]
[424351554,1780781442000,-150.0,0.00014861,2]
[424351550,1780781442000,-2000.0,0.0001485,2]
[424351551,1780781442000,-2000.0,0.0001485,2]
[424351552,1780781442000,-337.3653641,0.0001485,2]
[424351558,1780781442000,-200.0,0.00014871,2]
[424351557,1780781442000,-200.0,0.00014866,2]
[424351556,1780781442000,-337.3653641,0.00014865,2]
[424351553,1780781442000,-150.0,0.00014856,2]
[424351560,1780781442000,-455.0,0.00014873,2]
[424351559,1780781442000,-449.0,0.00014873,2]
[424351548,1780781442000,-166.66,0.00014841,2]
[424351562,1780781442000,-150.0,0.00014877,2]
[424351567,1780781442000,-150.0,0.00014877,2]
[424351563,1780781442000,-150.0,0.00014877,2]
[424351569,1780781442000,-200.0,0.00014877,2]
[424351564,1780781442000,-150.0,0.00014877,2]
[424351566,1780781442000,-150.0,0.00014877,2]
[424351565,1780781442000,-150.0,0.00014877,2]
[424351568,1780781442000,-150.0,0.00014877,2]
[424351570,1780781442000,-200.0,0.00014879,2]
[424351572,1780781442000,-150.0,0.00014886,2]
[424351573,1780781442000,-150.0,0.00014888,2]
[424351574,1780781442000,-150.0,0.00014889,2]
[424351576,1780781442000,-150.0,0.00014893,2]
[424351575,1780781442000,-25000.0,0.00014891,3]
[424351561,1780781442000,-200.0,0.00014875,2]
[424351543,1780781442000,-150.0,0.00014823,2]
[424351512,1780781442000,-150.0,0.00014726,2]
[424351544,1780781442000,-150.64131538,0.00014826,2]
[424351542,1780781442000,-337.3653641,0.0001482,2]
[424351520,1780781442000,-150.0,0.00014737,2]
[424351517,1780781442000,-500.0,0.00014726,2]
[424351571,1780781442000,-337.3653641,0.0001488,2]
[424351515,1780781442000,-500.0,0.00014726,2]
[424351513,1780781442000,-500.0,0.00014726,2]
[424351514,1780781442000,-500.0,0.00014726,2]
[424351521,1780781442000,-150.0,0.00014737,2]
[424351525,1780781442000,-337.3653641,0.00014759,2]
[424351524,1780781442000,-150.0,0.00014758,2]
[424351528,1780781442000,-150.0,0.00014786,2]
[424351526,1780781442000,-150.0,0.00014765,2]
[424351527,1780781442000,-337.3653641,0.00014774,2]
[424351530,1780781442000,-500.0,0.00014788,2]
[424351523,1780781442000,-337.3653641,0.00014744,2]
[424351531,1780781442000,-500.0,0.00014788,2]
[424351529,1780781442000,-500.0,0.00014788,2]
[424351540,1780781442000,-337.3653641,0.00014805,2]
[424351539,1780781442000,-1011.0,0.000148,5]
[424351537,1780781442000,-150.0,0.00014791,2]
[424351538,1780781442000,-150.0,0.00014799,2]
[424351534,1780781442000,-500.0,0.00014788,2]
[424351536,1780781442000,-150.0,0.0001479,2]
[424351541,1780781442000,-150.0,0.00014814,2]
[424351546,1780781442000,-150.0,0.00014836,2]
[424351535,1780781442000,-337.3653641,0.0001479,2]
[424351533,1780781442000,-500.0,0.00014788,2]
[424351532,1780781442000,-500.0,0.00014788,2]
[424351522,1780781442000,-150.0,0.00014741,2]
[424351545,1780781442000,-337.3653641,0.00014835,2]
[424351627,1780781443000,-500.0,0.00014994,2]
[424351632,1780781443000,-500.0,0.00014994,2]
[424351624,1780781443000,-517.16101474,0.00014989,2]
[424351631,1780781443000,-500.0,0.00014994,2]
[424351629,1780781443000,-500.0,0.00014994,2]
[424351623,1780781443000,-337.3653641,0.00014986,2]
[424351622,1780781443000,-150.0,0.00014986,2]
[424351621,1780781443000,-169.15934622,0.00014986,2]
[424351619,1780781443000,-151.0,0.00014986,2]
[424351628,1780781443000,-500.0,0.00014994,2]
[424351626,1780781443000,-517.16101474,0.0001499,2]
[424351635,1780781443000,-500.0,0.00014994,2]
[424351620,1780781443000,-150.0,0.00014986,2]
[424351633,1780781443000,-500.0,0.00014994,2]
[424351655,1780781443000,-500.0,0.00014994,2]
[424351636,1780781443000,-662.8,0.00014994,2]
[424351637,1780781443000,-662.8,0.00014994,2]
[424351638,1780781443000,-662.8,0.00014994,2]
[424351640,1780781443000,-605.94,0.00014994,2]
[424351639,1780781443000,-605.94,0.00014994,2]
[424351642,1780781443000,-500.0,0.00014994,2]
[424351641,1780781443000,-605.94,0.00014994,2]
[424351643,1780781443000,-500.0,0.00014994,2]
[424351644,1780781443000,-257.3388504,0.00014994,2]
[424351646,1780781443000,-500.0,0.00014994,2]
[424351645,1780781443000,-500.0,0.00014994,2]
[424351647,1780781443000,-500.0,0.00014994,2]
[424351656,1780781443000,-500.0,0.00014994,2]
[424351630,1780781443000,-500.0,0.00014994,2]
[424351634,1780781443000,-500.0,0.00014994,2]
[424351625,1780781443000,-1000.0,0.0001499,2]
[424351591,1780781443000,-1537.03591727,0.000149,2]
[424351608,1780781443000,-150.0,0.00014962,2]
[424351580,1780781443000,-247.52001284,0.000149,2]
[424351650,1780781443000,-500.0,0.00014994,2]
[424351579,1780781443000,-10756.24887527,0.000149,2]
[424351577,1780781443000,-337.3653641,0.00014895,2]
[424351581,1780781443000,-311.00234302,0.000149,2]
[424351583,1780781443000,-889.93805498,0.000149,2]
[424351601,1780781443000,-150.0,0.00014937,2]
[424351597,1780781443000,-150.0,0.00014913,2]
[424351600,1780781443000,-150.0,0.00014936,2]
[424351599,1780781443000,-337.3653641,0.00014926,2]
[424351598,1780781443000,-150.0,0.00014921,2]
[424351596,1780781443000,-337.3653641,0.00014911,2]
[424351585,1780781443000,-25000.0,0.000149,3]
[424351587,1780781443000,-326.87206672,0.000149,2]
[424351602,1780781443000,-337.3653641,0.00014941,2]
[424351589,1780781443000,-217.5231807,0.000149,2]
[424351593,1780781443000,-152.0,0.00014905,2]
[424351595,1780781443000,-291.49330483,0.00014908,2]
[424351604,1780781443000,-500.0,0.00014949,2]
[424351612,1780781443000,-1045.35211327,0.0001497,2]
[424351618,1780781443000,-151.0,0.00014986,2]
[424351613,1780781443000,-337.3653641,0.00014971,2]
[424351616,1780781443000,-151.41923819,0.00014986,2]
[424351607,1780781443000,-337.3653641,0.00014956,2]
[424351614,1780781443000,-151.5407187,0.00014986,2]
[424351615,1780781443000,-158.73968764,0.00014986,2]
[424351606,1780781443000,-150.0,0.00014954,2]
[424351617,1780781443000,-160.88134904,0.00014986,2]
[424351610,1780781443000,-1000.0,0.0001497,2]
[424351611,1780781443000,-1000.0,0.0001497,2]
[424351578,1780781443000,-10000.0,0.000149,2]
[424351654,1780781443000,-500.0,0.00014994,2]
[424351649,1780781443000,-500.0,0.00014994,2]
[424351693,1780781443000,-662.8,0.00014999,2]
[424351697,1780781443000,-662.8,0.00014999,2]
[424351699,1780781443000,-662.8,0.00014999,2]
[424351690,1780781443000,-500.0,0.00014999,2]
[424351700,1780781443000,-662.8,0.00014999,2]
[424351692,1780781443000,-662.8,0.00014999,2]
[424351688,1780781443000,-500.0,0.00014999,2]
[424351689,1780781443000,-662.8,0.00014999,2]
[424351695,1780781443000,-662.8,0.00014999,2]
[424351691,1780781443000,-662.8,0.00014999,2]
[424351709,1780781443000,-605.94,0.00014999,2]
[424351711,1780781443000,-605.94,0.00014999,2]
[424351713,1780781443000,-605.94,0.00014999,2]
[424351715,1780781443000,-500.0,0.00014999,2]
[424351685,1780781443000,-662.8,0.00014999,2]
[424351710,1780781443000,-605.94,0.00014999,2]
[424351712,1780781443000,-605.94,0.00014999,2]
[424351704,1780781443000,-662.8,0.00014999,2]
[424351705,1780781443000,-662.8,0.00014999,2]
[424351706,1780781443000,-662.83052418,0.00014999,2]
[424351702,1780781443000,-662.8,0.00014999,2]
[424351707,1780781443000,-605.94,0.00014999,2]
[424351708,1780781443000,-605.94,0.00014999,2]
[424351716,1780781443000,-605.94,0.00014999,2]
[424351720,1780781443000,-605.94,0.00014999,2]
[424351718,1780781443000,-605.94,0.00014999,2]
[424351717,1780781443000,-511.49905522,0.00014999,2]
[424351721,1780781443000,-605.94,0.00014999,2]
[424351722,1780781443000,-605.94,0.00014999,2]
[424351657,1780781443000,-514.78,0.00014994,2]
[424351714,1780781443000,-500.0,0.00014999,2]
[424351686,1780781443000,-500.0,0.00014999,2]
[424351719,1780781443000,-605.94,0.00014999,2]
[424351678,1780781443000,-500.0,0.00014999,2]
[424351687,1780781443000,-662.8,0.00014999,2]
[424351653,1780781443000,-500.0,0.00014994,2]
[424351648,1780781443000,-500.0,0.00014994,2]
[424351652,1780781443000,-500.0,0.00014994,2]
[424351658,1780781443000,-514.78,0.00014994,2]
[424351659,1780781443000,-514.78,0.00014994,2]
[424351660,1780781443000,-600.14,0.00014994,2]
[424351669,1780781443000,-449.33,0.00014999,2]
[424351662,1780781443000,-600.14,0.00014994,2]
[424351663,1780781443000,-531.62734049,0.00014995,2]
[424351661,1780781443000,-600.14,0.00014994,2]
[424351664,1780781443000,-698759.0925373,0.00014995,2]
[424351670,1780781443000,-500.0,0.00014999,2]
[424351666,1780781443000,-350.0,0.00014996,2]
[424351665,1780781443000,-3107.64319668,0.00014995,3]
[424351651,1780781443000,-500.0,0.00014994,2]
[424351667,1780781443000,-500.0,0.00014999,2]
[424351668,1780781443000,-500.0,0.00014999,2]
[424351677,1780781443000,-500.0,0.00014999,2]
[424351679,1780781443000,-500.0,0.00014999,2]
[424351676,1780781443000,-500.0,0.00014999,2]
[424351681,1780781443000,-500.0,0.00014999,2]
[424351680,1780781443000,-456.53966443,0.00014999,2]
[424351675,1780781443000,-500.0,0.00014999,2]
[424351674,1780781443000,-500.0,0.00014999,2]
[424351671,1780781443000,-500.0,0.00014999,2]
[424351672,1780781443000,-500.0,0.00014999,2]
[424351684,1780781443000,-500.0,0.00014999,2]
[424351682,1780781443000,-500.0,0.00014999,2]
[424351683,1780781443000,-500.0,0.00014999,2]
[424351673,1780781443000,-500.0,0.00014999,2]
[424351772,1780781444000,-500.0,0.00014999,2]
[424351774,1780781444000,-500.0,0.00014999,2]
[424351761,1780781444000,-500.0,0.00014999,2]
[424351765,1780781444000,-500.0,0.00014999,2]
[424351763,1780781444000,-500.0,0.00014999,2]
[424351759,1780781444000,-500.0,0.00014999,2]
[424351770,1780781444000,-500.0,0.00014999,2]
[424351773,1780781444000,-500.0,0.00014999,2]
[424351771,1780781444000,-500.0,0.00014999,2]
[424351767,1780781444000,-500.0,0.00014999,2]
[424351769,1780781444000,-500.0,0.00014999,2]
[424351766,1780781444000,-500.0,0.00014999,2]
[424351775,1780781444000,-500.0,0.00014999,2]
[424351783,1780781444000,-500.0,0.00014999,2]
[424351786,1780781444000,-500.0,0.00014999,2]
[424351778,1780781444000,-500.0,0.00014999,2]
[424351785,1780781444000,-500.0,0.00014999,2]
[424351777,1780781444000,-500.0,0.00014999,2]
[424351787,1780781444000,-500.0,0.00014999,2]
[424351779,1780781444000,-500.0,0.00014999,2]
[424351780,1780781444000,-500.0,0.00014999,2]
[424351781,1780781444000,-500.0,0.00014999,2]
[424351784,1780781444000,-500.0,0.00014999,2]
[424351782,1780781444000,-500.0,0.00014999,2]
[424351789,1780781444000,-500.0,0.00014999,2]
[424351788,1780781444000,-500.0,0.00014999,2]
[424351801,1780781444000,-500.0,0.00014999,2]
[424351758,1780781444000,-500.0,0.00014999,2]
[424351776,1780781444000,-500.0,0.00014999,2]
[424351768,1780781444000,-500.0,0.00014999,2]
[424351740,1780781444000,-500.0,0.00014999,2]
[424351748,1780781444000,-500.0,0.00014999,2]
[424351800,1780781444000,-500.0,0.00014999,2]
[424351724,1780781444000,-500.0,0.00014999,2]
[424351729,1780781444000,-500.0,0.00014999,2]
[424351727,1780781444000,-500.0,0.00014999,2]
[424351726,1780781444000,-500.0,0.00014999,2]
[424351725,1780781444000,-500.0,0.00014999,2]
[424351723,1780781444000,-606.14631724,0.00014999,2]
[424351732,1780781444000,-500.0,0.00014999,2]
[424351735,1780781444000,-500.0,0.00014999,2]
[424351731,1780781444000,-500.0,0.00014999,2]
[424351743,1780781444000,-500.0,0.00014999,2]
[424351742,1780781444000,-500.0,0.00014999,2]
[424351734,1780781444000,-500.0,0.00014999,2]
[424351744,1780781444000,-500.0,0.00014999,2]
[424351736,1780781444000,-500.0,0.00014999,2]
[424351741,1780781444000,-500.0,0.00014999,2]
[424351739,1780781444000,-500.0,0.00014999,2]
[424351737,1780781444000,-500.0,0.00014999,2]
[424351738,1780781444000,-500.0,0.00014999,2]
[424351757,1780781444000,-500.0,0.00014999,2]
[424351752,1780781444000,-500.0,0.00014999,2]
[424351751,1780781444000,-500.0,0.00014999,2]
[424351755,1780781444000,-500.0,0.00014999,2]
[424351745,1780781444000,-500.0,0.00014999,2]
[424351753,1780781444000,-500.0,0.00014999,2]
[424351756,1780781444000,-500.0,0.00014999,2]
[424351749,1780781444000,-500.0,0.00014999,2]
[424351750,1780781444000,-408.36930223,0.00014999,2]
[424351746,1780781444000,-500.0,0.00014999,2]
[424351754,1780781444000,-500.0,0.00014999,2]
[424351799,1780781444000,-500.0,0.00014999,2]
[424351747,1780781444000,-500.0,0.00014999,2]
[424351791,1780781444000,-500.0,0.00014999,2]
[424351822,1780781444000,-500.0,0.00014999,2]
[424351830,1780781444000,-514.78,0.00014999,2]
[424351840,1780781444000,-515.01476326,0.00014999,2]
[424351841,1780781444000,-600.14,0.00014999,2]
[424351835,1780781444000,-514.78,0.00014999,2]
[424351829,1780781444000,-514.78,0.00014999,2]
[424351857,1780781444000,-413.05991736,0.00014999,2]
[424351832,1780781444000,-514.78,0.00014999,2]
[424351837,1780781444000,-514.78,0.00014999,2]
[424351834,1780781444000,-514.78,0.00014999,2]
[424351839,1780781444000,-514.78,0.00014999,2]
[424351831,1780781444000,-514.78,0.00014999,2]
[424351836,1780781444000,-514.78,0.00014999,2]
[424351833,1780781444000,-514.78,0.00014999,2]
[424351838,1780781444000,-514.78,0.00014999,2]
[424351851,1780781444000,-300.0,0.00014999,2]
[424351853,1780781444000,-300.0,0.00014999,2]
[424351852,1780781444000,-666.0,0.00014999,2]
[424351843,1780781444000,-600.14,0.00014999,2]
[424351844,1780781444000,-600.14,0.00014999,2]
[424351842,1780781444000,-600.14,0.00014999,2]
[424351845,1780781444000,-600.14,0.00014999,2]
[424351846,1780781444000,-600.14,0.00014999,2]
[424351849,1780781444000,-600.31230357,0.00014999,2]
[424351847,1780781444000,-600.14,0.00014999,2]
[424351850,1780781444000,-300.0,0.00014999,2]
[424351855,1780781444000,-300.0,0.00014999,2]
[424351856,1780781444000,-300.0,0.00014999,2]
[424351854,1780781444000,-666.0,0.00014999,2]
[424351823,1780781444000,-500.0,0.00014999,2]
[424351819,1780781444000,-500.0,0.00014999,2]
[424351848,1780781444000,-600.14,0.00014999,2]
[424351817,1780781444000,-500.0,0.00014999,2]
[424351820,1780781444000,-500.0,0.00014999,2]
[424351790,1780781444000,-500.0,0.00014999,2]
[424351795,1780781444000,-500.0,0.00014999,2]
[424351794,1780781444000,-500.0,0.00014999,2]
[424351796,1780781444000,-500.0,0.00014999,2]
[424351793,1780781444000,-500.0,0.00014999,2]
[424351797,1780781444000,-500.0,0.00014999,2]
[424351798,1780781444000,-500.0,0.00014999,2]
[424351802,1780781444000,-500.0,0.00014999,2]
[424351805,1780781444000,-500.0,0.00014999,2]
[424351804,1780781444000,-500.0,0.00014999,2]
[424351808,1780781444000,-500.0,0.00014999,2]
[424351807,1780781444000,-500.0,0.00014999,2]
[424351806,1780781444000,-500.0,0.00014999,2]
[424351809,1780781444000,-500.0,0.00014999,2]
[424351792,1780781444000,-500.0,0.00014999,2]
[424351812,1780781444000,-500.0,0.00014999,2]
[424351818,1780781444000,-500.0,0.00014999,2]
[424351803,1780781444000,-500.0,0.00014999,2]
[424351815,1780781444000,-500.0,0.00014999,2]
[424351821,1780781444000,-500.0,0.00014999,2]
[424351828,1780781444000,-514.78,0.00014999,2]
[424351825,1780781444000,-500.0,0.00014999,2]
[424351827,1780781444000,-514.78,0.00014999,2]
[424351824,1780781444000,-500.0,0.00014999,2]
[424351816,1780781444000,-500.0,0.00014999,2]
[424351813,1780781444000,-500.0,0.00014999,2]
[424351814,1780781444000,-500.0,0.00014999,2]
[424351811,1780781444000,-500.0,0.00014999,2]
[424351810,1780781444000,-500.0,0.00014999,2]
[424351826,1780781444000,-268.92344752,0.00014999,2]
[424351868,1780781445000,-1000.0,0.00015,2]
[424351877,1780781445000,-1000.0,0.00015,2]
[424351874,1780781445000,-1000.0,0.00015,2]
[424351876,1780781445000,-1000.0,0.00015,2]
[424351875,1780781445000,-1000.0,0.00015,2]
[424351870,1780781445000,-1000.0,0.00015,2]
[424351871,1780781445000,-1000.0,0.00015,2]
[424351872,1780781445000,-1000.0,0.00015,2]
[424351879,1780781445000,-1000.0,0.00015,2]
[424351864,1780781445000,-170.82,0.00015,2]
[424351861,1780781445000,-428.80272023,0.00015,2]
[424351863,1780781445000,-1755.97,0.00015,2]
[424351859,1780781445000,-300.0,0.00014999,2]
[424351867,1780781445000,-1000.0,0.00015,2]
[424351873,1780781445000,-1000.0,0.00015,2]
[424351858,1780781445000,-300.0,0.00014999,2]
[424351860,1780781445000,-3751735.60556587,0.00015,2]
[424351866,1780781445000,-1000.0,0.00015,2]
[424351862,1780781445000,-351.77766535,0.00015,2]
[424351869,1780781445000,-1000.0,0.00015,2]
[424351878,1780781445000,-1000.0,0.00015,2]
[424351881,1780781445000,-1000.0,0.00015,2]
[424351882,1780781445000,-1000.0,0.00015,2]
[424351865,1780781445000,-1000.0,0.00015,2]
[424351902,1780781445000,-2091.68541483,0.000149,2]
[424351901,1780781445000,-311.41844907,0.000149,2]
[424351899,1780781445000,-9626.92462259,0.00013726,2]
[424351900,1780781445000,-1020726.51401855,0.00015,2]
[424351898,1780781445000,-2077.09609669,0.00013726,2]
[424351897,1780781445000,-6799.89819501,0.00015,2]
[424351895,1780781445000,-10687.09029389,0.00015,2]
[424351894,1780781445000,-6585.89135905,0.00015,2]
[424351880,1780781445000,-1000.0,0.00015,2]
[424351893,1780781445000,-12694125.10518893,0.00015,2]
[424351890,1780781445000,-151.0,0.00015,2]
[424351888,1780781445000,-1000.0,0.00015,2]
[424351891,1780781445000,-194.16960397,0.00015,2]
[424351889,1780781445000,-201.6412839,0.00015,2]
[424351885,1780781445000,-1000.0,0.00015,2]
[424351886,1780781445000,-1000.0,0.00015,2]
[424351887,1780781445000,-1000.0,0.00015,2]
[424351884,1780781445000,-1000.0,0.00015,2]
[424351883,1780781445000,-1000.0,0.00015,2]
[424351892,1780781445000,-200.0,0.00015,2]
[424351896,1780781445000,-8355.461751,0.00015,2]
[424352139,1780782384000,167.33135552,0.00024645,120]
[424352140,1780782384000,201.10477384,0.00024645,120]
[424352346,1780782637000,-500.0,0.00013698,2]
[424352319,1780782637000,-371.96994771,0.00013596,2]
[424352317,1780782637000,-2926.00517982,0.00013511,2]
[424352318,1780782637000,-178.3428295,0.00013563,2]
[424352316,1780782637000,-1274.73229453,0.00013511,2]
[424352315,1780782637000,-2500.0,0.00013498,2]
[424352314,1780782637000,-163.61,0.00013151,2]
[424352312,1780782637000,-365.57,0.00012957,2]
[424352313,1780782637000,-150.0,0.00013018,2]
[424352309,1780782637000,-150.38,0.00012723,2]
[424352311,1780782637000,-514.76,0.0001276,2]
[424352308,1780782637000,-500.0,0.00012411,2]
[424352310,1780782637000,-2000.0,0.00012759,2]
[424352307,1780782637000,-500.0,0.00011863,2]
[424352303,1780782637000,-300.0,0.0001166,2]
[424352305,1780782637000,-500.0,0.0001166,2]
[424352304,1780782637000,-250.0,0.0001166,2]
[424352302,1780782637000,-193.0,0.0001166,2]
[424352301,1780782637000,-277.25669425,0.0001156,2]
[424352300,1780782637000,-250.0,0.0001108,2]
[424352320,1780782637000,-500.0,0.00013596,2]
[424352321,1780782637000,-408.59361922,0.00013596,2]